bitfinex-derivatives/quotes_ETHF0:USTF0_20250903
["timestamp","ask_amount","ask_price","bid_price","bid_amount"]
[1756895834154,0.4326,4358.5,4358.4,0.3188]
[1756895834354,0.8378,4358.5,4358.4,0.2764]
[1756895834853,0.8378,4358.5,4358.4,0.3188]
[1756895836062,0.6364,4358.5,4358.4,0.3188]
[1756895836248,0.4326,4358.5,4358.4,1.20324567]
[1756895836842,0.6364,4358.5,4358.4,1.20324567]
[1756895837048,0.4326,4358.5,4358.4,1.20324567]
[1756895837248,0.4326,4358.5,4358.4,0.3188]
[1756895837447,0.6364,4358.5,4358.4,1.20324567]
[1756895837651,0.4326,4358.5,4358.4,1.22974567]
[1756895838446,0.1147,4358.7,4358.4,1.22974567]
[1756895838653,0.4228,4358.7,4358.6,0.1113]
[1756895838954,0.4228,4358.7,4358.6,0.3453]
[1756895839949,0.1147,4358.7,4358.6,0.3453]
[1756895840851,0.4228,4358.7,4358.6,0.3453]
[1756895842557,0.4228,4358.7,4358.6,0.3188]
[1756895842753,0.6266,4358.7,4358.6,0.3188]
[1756895842951,0.4228,4358.7,4358.6,0.3453]
[1756895843561,0.1147,4358.7,4358.6,2.37929828]
[1756895843755,0.1147,4358.7,4358.6,0.75824]
[1756895844153,0.1147,4358.7,4358.6,41.55824]
[1756895844953,0.1248,4359.5,4358.6,41.55824]
[1756895844954,0.3286,4359.5,4359.4,0.0848]
[1756895845159,0.1245,4360.5,4359.4,2.11419134]
[1756895845458,0.53,4360.0,4359.9,1.08064567]
[1756895845753,0.8381,4360.0,4359.9,42.11464567]
[1756895848757,0.8381,4360.0,4359.9,41.2302]
[1756895848958,0.8381,4360.0,4359.9,42.11464567]
[1756895849158,0.8381,4360.0,4359.9,41.91844567]
[1756895852455,0.8381,4360.0,4359.9,41.68444567]
[1756895852657,0.3283,4361.5,4361.4,0.1962]
[1756895852960,0.1245,4362.5,4361.6,0.2918]
[1756895853164,0.4052,4361.8,4361.7,1.80624567]
[1756895855360,1.00894567,4363.0,4361.7,1.80624567]
[1756895855566,0.5706,4362.4,4362.3,1.17624567]
[1756895855970,0.5706,4362.4,4362.3,0.2918]
[1756895856562,0.5706,4362.2,4362.0,0.88444567]
[1756895856764,0.4052,4361.8,4361.7,1.08064567]
[1756895857068,0.4052,4361.8,4361.7,1.28044567]
[1756895857268,0.4052,4361.8,4361.7,1.57224567]
[1756895857567,0.4052,4361.8,4361.7,42.37224567]
[1756895858864,0.2038,4361.8,4361.7,42.37224567]
[1756895859167,0.2038,4362.1,4362.0,0.811]
[1756895859361,0.2038,4362.1,4362.0,1.69544567]
[1756895860658,0.4052,4362.1,4362.0,1.69544567]
[1756895861468,0.2038,4362.1,4362.0,1.69544567]
[1756895861870,0.4052,4362.1,4362.0,1.69544567]
[1756895865566,0.88444567,4362.5,4362.1,0.2927]
[1756895865764,0.2071,4362.2,4362.1,0.6823]
[1756895866761,0.2071,4362.2,4362.1,1.56674567]
[1756895867860,0.2071,4362.6,4362.5,0.5114]
[1756895868569,0.1655,4364.0,4362.6,0.2927]
[1756895868770,0.4098,4363.7,4363.6,1.37224567]
[1756895869072,0.4098,4363.7,4363.6,0.4878]
[1756895869872,0.4098,4363.7,4363.6,0.6823]
[1756895870468,0.4098,4364.1,4364.0,0.6096]
[1756895871675,0.4098,4364.1,4364.0,1.68854567]
[1756895872973,0.1655,4365.3,4364.1,0.2927]
[1756895873174,0.2071,4364.5,4364.4,1.27404567]
[1756895873373,0.2071,4364.5,4364.4,1.56674567]
[1756895875877,0.5753,4365.0,4364.9,0.1951]
[1756895876077,0.5753,4365.0,4364.9,0.4878]
[1756895876273,0.5753,4365.0,4363.9,40.8]
[1756895876274,0.4098,4363.7,4363.6,0.2927]
[1756895876571,0.1655,4363.2,4363.0,0.4145]
[1756895876771,0.5753,4363.1,4363.0,0.2927]
[1756895876972,0.4098,4363.1,4362.5,1.00624567]
[1756895877171,0.5753,4363.1,4362.6,0.2927]
[1756895877369,0.5753,4363.1,4363.0,0.1218]
[1756895877573,0.5753,4363.1,4363.0,0.4145]
[1756895877774,0.5753,4363.1,4362.5,1.00624567]
[1756895878073,0.88444567,4362.9,4362.6,0.2927]
[1756895878276,0.4098,4362.7,4362.6,0.6823]
[1756895880371,0.2071,4362.7,4362.6,0.6823]
[1756895881676,0.4098,4363.3,4363.2,0.4878]
[1756895881877,0.5753,4363.3,4363.2,0.2927]
[1756895883678,0.4098,4363.3,4363.0,0.4145]
[1756895883876,0.4098,4363.1,4362.5,0.1218]
[1756895884077,0.4098,4362.7,4362.6,0.4878]
[1756895884578,0.4098,4362.7,4362.6,0.6823]
[1756895885286,0.5753,4362.7,4362.6,0.4878]
[1756895885485,0.4098,4362.7,4362.6,0.4878]
[1756895885783,0.4098,4362.7,4362.6,0.6823]
[1756895887181,0.4098,4362.7,4362.0,0.1218]
[1756895887182,0.5753,4362.7,4362.1,0.2927]
[1756895891693,0.3941,4362.2,4362.0,0.1218]
[1756895891892,0.559,4362.2,4362.1,0.2901]
[1756895892093,0.559,4362.2,4362.1,0.4895]
[1756895892498,0.3941,4362.2,4362.1,0.4895]
[1756895893293,0.3941,4362.2,4362.1,0.684]
[1756895895398,0.559,4362.2,4362.1,0.4895]
[1756895895800,0.234,4363.0,4362.2,0.2901]
[1756895896091,0.3989,4363.0,4362.2,0.2901]
[1756895896298,0.22922,4362.9,4362.2,0.2901]
[1756895896699,0.3989,4363.0,4362.2,0.2901]
[1756895896999,0.62812,4363.0,4362.2,0.2901]
[1756895897598,0.1995,4362.3,4362.2,0.684]
[1756895898001,0.3941,4362.3,4362.2,0.684]
[1756895898898,0.559,4362.3,4362.2,0.2901]
[1756895899297,0.559,4362.3,4362.2,0.4895]
[1756895899502,0.559,4362.3,4362.2,0.2901]
[1756895899693,0.559,4362.3,4362.0,0.1218]
[1756895899893,0.3941,4362.1,4362.0,0.1218]
[1756895900094,0.559,4362.1,4362.0,0.4119]
[1756895900390,0.559,4362.1,4362.0,0.6113]
[1756895900793,0.3941,4362.1,4362.0,0.6113]
[1756895901394,0.3941,4362.1,4362.0,0.8058]
[1756895905001,0.1234,4362.0,4361.0,0.1218]
[1756895905202,0.7078,4361.2,4361.1,0.3939]
[1756895905392,0.1995,4361.2,4361.1,0.3939]
[1756895907096,0.1995,4361.2,4361.1,0.684]
[1756895908804,0.214,4361.8,4361.1,0.3939]
[1756895909004,0.214,4361.8,4361.7,0.684]
[1756895909196,0.3137,4362.4,4361.8,0.2901]
[1756895909398,0.5132,4362.4,4362.3,0.684]
[1756895909599,0.7472,4362.4,4362.3,0.684]
[1756895909800,0.1995,4362.4,4362.3,0.684]
[1756895910095,1.39266774,4362.8,4362.3,0.3939]
[1756895910303,0.9418,4362.7,4362.6,0.684]
[1756895913311,1.46797257,4362.7,4362.6,0.684]
[1756895915306,0.72567257,4362.7,4362.6,0.684]
[1756895915510,0.234,4362.7,4362.6,0.684]
[1756895917808,33.058,4363.5,4362.6,0.684]
[1756895918011,0.1995,4363.4,4363.3,0.684]
[1756895918212,0.4335,4363.4,4363.3,0.684]
[1756895918513,0.234,4363.4,4363.3,0.684]
[1756895919009,0.1995,4363.4,4363.3,0.684]
[1756895919214,0.1995,4363.4,4363.0,0.1184]
[1756895919215,33.5253,4363.5,4363.4,0.4895]
[1756895919409,33.4505,4363.5,4363.4,0.684]
[1756895919811,33.9588,4363.5,4363.4,0.684]
[1756895920011,35.03776774,4363.5,4363.4,0.684]
[1756895920207,34.72406774,4363.5,4363.4,0.684]
[1756895920406,34.52946774,4363.5,4363.4,0.684]
[1756895920809,35.03776774,4363.5,4363.4,0.684]
[1756895922216,35.03776774,4363.5,4363.4,0.4895]
[1756895922817,35.12286774,4363.5,4363.1,0.3014]
[1756895923313,0.3997,4363.4,4363.3,0.4153]
[1756895923514,0.4368,4363.4,4363.3,0.7167]
[1756895923710,0.3138,4364.1,4363.4,0.3014]
[1756895923909,0.2028,4364.1,4364.0,0.8412]
[1756895924110,0.6337,4364.1,4364.0,0.8412]
[1756895924309,0.1224,4364.0,4363.6,0.3014]
[1756895924509,0.1224,4364.0,4363.0,0.1184]
[1756895924510,0.7135,4363.2,4363.1,0.509]
[1756895924716,0.9475,4363.2,4363.1,0.509]
[1756895926213,0.9475,4363.2,4362.6,0.3014]
[1756895926416,0.3997,4362.7,4362.6,0.7167]
[1756895927617,0.2028,4362.7,4362.6,0.7167]
[1756895927817,0.5478,4363.2,4362.7,0.3014]
[1756895928219,0.4368,4363.2,4363.1,0.2076]
[1756895928525,0.6337,4363.2,4363.1,0.509]
[1756895928821,0.9475,4363.2,4363.1,0.509]
[1756895931513,0.9475,4363.2,4363.1,0.3014]
[1756895931715,0.9475,4363.2,4362.5,0.1184]
[1756895931916,0.9475,4363.2,4362.6,0.3014]
[1756895932814,0.9475,4363.2,4363.1,0.509]
[1756895933022,0.9475,4363.2,4363.1,0.7167]
[1756895933219,0.6337,4363.2,4363.1,0.7167]
[1756895933818,0.2028,4363.6,4363.5,0.8412]
[1756895934021,0.4368,4363.6,4363.5,0.8412]
[1756895934220,33.019,4364.1,4364.0,0.8412]
[1756895934527,33.4558,4364.1,4364.0,0.8412]
[1756895936227,33.2218,4364.1,4364.0,0.8412]
[1756895936524,33.4558,4364.1,4364.0,0.8412]
[1756895938423,33.6527,4364.1,4364.0,0.8412]
[1756895938622,33.9665,4364.1,4364.0,0.7167]
[1756895938822,33.9665,4364.1,4364.0,0.3014]
[1756895939016,33.9665,4364.1,4363.5,0.1245]
[1756895939216,33.9665,4364.1,4363.6,0.3014]
[1756895940028,33.9665,4364.1,4364.0,0.2076]
[1756895940228,33.9665,4364.1,4364.0,0.509]
[1756895940727,33.9665,4364.1,4363.5,0.1245]
[1756895940922,0.7135,4363.6,4363.5,0.8412]
[1756895941122,0.9475,4363.6,4363.5,0.8412]
[1756895941326,0.4368,4363.6,4363.5,0.8412]
[1756895941527,0.234,4363.6,4363.5,0.8412]
[1756895942128,33.2218,4364.1,4364.0,0.1245]
[1756895942434,33.9665,4364.1,4364.0,0.8412]
[1756895944927,0.3997,4364.9,4364.8,0.7167]
[1756895945230,0.1224,4366.0,4365.0,0.5398]
[1756895945231,0.4368,4365.1,4365.0,0.5398]
[1756895945424,0.4368,4365.1,4365.0,0.8412]
[1756895946432,0.6337,4365.1,4365.0,0.8412]
[1756895946629,0.9475,4365.1,4365.0,0.8412]
[1756895947029,0.9475,4365.1,4365.0,0.509]
[1756895947333,0.7135,4364.6,4364.5,0.2076]
[1756895947539,0.7135,4364.6,4363.9,1.63777641]
[1756895947540,0.3997,4363.2,4363.1,40.8]
[1756895947729,0.7135,4363.2,4363.1,40.8]
[1756895948528,0.5166,4363.2,4363.1,0.7167]
[1756895948932,0.7135,4363.2,4363.1,0.4153]
[1756895952234,0.5166,4363.2,4363.1,0.7095]
[1756895952436,0.3138,4363.2,4363.1,0.7095]
[1756895952637,0.3157,4363.4,4363.2,0.2942]
[1756895952938,0.717,4363.4,4363.3,0.4104]
[1756895955037,0.717,4363.4,4363.3,0.1986]
[1756895955541,0.3236,4363.0,4362.9,0.4104]
[1756895955731,0.5253,4363.0,4362.9,0.4104]
[1756895956135,0.841,4363.0,4362.9,0.4104]
[1756895956330,0.841,4363.0,4362.4,1.83637641]
[1756895956331,0.841,4362.5,4362.4,1.83637641]
[1756895956536,0.841,4362.5,4362.4,0.1986]
[1756895958946,0.3157,4362.4,4362.0,40.8]
[1756895959243,0.717,4362.1,4362.0,40.8]
[1756895960032,0.717,4362.1,4362.0,41.0942]
[1756895961042,0.6414,4362.5,4362.4,0.4104]
[1756895961337,0.841,4362.5,4362.4,0.4104]
[1756895962842,0.3157,4362.4,4362.0,40.8]
[1756895963039,0.717,4362.1,4362.0,40.8]
[1756895963941,0.717,4362.1,4362.0,0.7046]
[1756895964248,0.5174,4362.1,4362.0,0.7046]
[1756895966842,0.124,4362.0,4361.9,40.8]
[1756895967049,0.124,4361.5,4361.4,1.87177641]
[1756895967237,0.841,4361.5,4361.4,0.6444]
[1756895967437,0.3157,4361.5,4361.4,41.7386]
[1756895968149,0.4397,4361.5,4361.4,41.7386]
[1756895968349,0.3157,4361.5,4361.4,41.7386]
[1756895970142,0.5174,4361.5,4361.4,0.9386]
[1756895970448,0.3157,4362.3,4361.9,0.2942]
[1756895970645,0.5174,4362.3,4362.2,0.7046]
[1756895970843,0.717,4362.3,4362.2,0.4104]
[1756895971047,1.60022146,4362.3,4361.6,0.88322146]
[1756895971241,0.3157,4362.2,4361.5,41.3282]
[1756895971448,0.5174,4361.6,4361.5,41.3282]
[1756895972245,0.3157,4361.6,4361.5,41.3282]
[1756895973149,0.841,4362.0,4361.9,0.4104]
[1756895973847,33.016,4363.3,4361.9,0.7046]
[1756895974148,0.6414,4362.5,4362.4,1.58782146]
[1756895974353,0.5174,4362.5,4362.4,1.58782146]
[1756895974646,0.6414,4363.0,4362.9,0.4104]
[1756895975449,0.6414,4363.0,4362.9,0.7046]
[1756895975649,0.841,4363.0,4362.9,0.4104]
[1756895975951,0.841,4363.0,4362.9,0.1986]
[1756895976150,0.3157,4362.9,4362.7,40.8]
[1756895976446,0.717,4362.8,4362.7,0.4104]
[1756895976644,3.17838377,4362.9,4361.9,1.93197641]
[1756895976846,0.3157,4362.8,4362.0,40.8]
[1756895977045,0.717,4362.6,4362.5,0.1986]
[1756895977555,0.4397,4362.5,4362.0,41.0942]
[1756895977849,0.5174,4362.1,4362.0,41.0942]
[1756895979048,0.717,4362.1,4361.7,1.63777641]
[1756895979250,0.124,4362.5,4361.0,0.0652]
[1756895979251,0.5174,4361.5,4361.4,2.34237641]
[1756895979447,0.5174,4361.5,4361.4,41.7386]
[1756895981049,0.124,4362.0,4361.4,41.4444]
[1756895981244,0.3157,4362.4,4362.0,0.4104]
[1756895981444,0.2017,4362.4,4362.3,0.4104]
[1756895981750,0.5098,4362.4,4362.3,0.724]
[1756895982855,0.7174,4362.4,4362.3,0.1986]
[1756895985357,0.7174,4362.4,4361.9,0.7137]
[1756895985358,0.1197,4362.0,4361.9,0.7137]
[1756895985558,0.8275,4362.0,4361.9,0.4001]
[1756895986652,0.5002,4362.0,4361.9,0.7137]
[1756895986853,0.124,4362.5,4361.9,0.7137]
[1756895986854,0.3081,4362.4,4361.9,0.7137]
[1756895987053,0.3081,4362.4,4362.0,0.3136]
[1756895987259,0.3081,4362.4,4361.7,1.63777641]
[1756895987260,0.1921,4362.5,4362.4,0.7137]
[1756895987560,0.5194,4362.5,4362.4,0.2044]
[1756895987858,0.3118,4362.0,4361.9,2.27187641]
[1756895988053,0.8275,4362.0,4361.9,2.27187641]
[1756895988253,0.8275,4362.0,4361.9,0.6341]
[1756895988461,0.8275,4362.0,4361.9,0.4001]
[1756895990469,0.8275,4362.0,4361.9,0.7137]
[1756895990770,0.8275,4362.0,4361.9,0.4001]
[1756895991966,0.8275,4362.0,4361.9,0.7137]
[1756895992163,0.6199,4362.0,4361.9,0.7137]
[1756895992469,0.8275,4362.0,4361.9,0.4001]
[1756895995473,0.8275,4362.0,4361.7,1.63777641]
[1756895995670,0.3997,4361.8,4361.7,1.63777641]
[1756895995867,0.3081,4361.7,4361.6,1.63777641]
[1756895996178,0.3081,4361.9,4361.7,0.3136]
[1756895996366,0.3081,4362.4,4361.9,0.3136]
[1756895996562,0.5194,4362.5,4361.9,0.3136]
[1756895996871,0.5194,4362.0,4361.9,0.7137]
[1756895997072,0.8275,4362.0,4361.9,0.7137]
[1756895997470,0.6199,4362.0,4361.9,0.7137]
[1756895997671,0.3081,4362.4,4362.0,0.3136]
[1756895997875,0.5194,4362.5,4362.4,0.4001]
[1756895998465,0.8275,4362.5,4362.4,0.4001]
[1756895999272,1.7106807,4362.5,4362.4,0.2044]
[1756895999571,0.3118,4362.0,4361.9,1.2832807]
[1756895999875,0.6199,4362.0,4361.9,1.2832807]
[1756896000075,0.6199,4362.0,4361.9,1.5968807]
[1756896000271,1.0028807,4362.5,4362.0,0.3136]
[1756896000471,1.0028807,4362.5,4362.2,0.2044]
[1756896000680,0.7078,4362.3,4362.2,0.7137]
[1756896000878,0.7078,4362.3,4362.2,0.4001]
[1756896001271,0.7078,4362.3,4362.2,0.7137]
[1756896001472,0.1145,4362.7,4362.2,1.2832807]
[1756896001678,0.3081,4362.6,4362.5,1.5968807]
[1756896001977,0.5002,4362.6,4362.5,0.7137]
[1756896002281,0.7078,4362.6,4362.5,0.4001]
[1756896002473,0.7078,4362.6,4362.4,0.8831807]
[1756896002474,0.7078,4362.6,4362.3,1.63777641]
[1756896002778,0.9976807,4362.7,4362.1,1.63777641]
[1756896002779,0.3997,4362.2,4362.1,1.63777641]
[1756896002980,0.7078,4362.2,4362.1,1.63777641]
[1756896003183,0.1197,4362.0,4361.9,2.03787641]
[1756896003381,0.6199,4362.0,4361.9,2.35147641]
[1756896006286,0.5002,4362.4,4362.3,0.4001]
[1756896006479,0.5002,4362.4,4361.8,1.0787321]
[1756896006480,0.1145,4362.7,4362.6,0.7137]
[1756896006676,0.1145,4362.7,4362.6,3.4329411]
[1756896007078,0.1145,4362.7,4362.6,42.8264321]
[1756896007981,0.1145,4362.7,4362.6,48.85275495]
[1756896008483,0.1145,4362.7,4362.6,46.8264321]
[1756896009580,0.5002,4363.6,4363.5,0.4001]
[1756896009977,0.5002,4363.6,4363.5,0.7143]
[1756896010385,0.3081,4363.9,4363.8,0.4001]
[1756896010578,0.5002,4363.9,4363.8,0.7143]
[1756896010782,0.7078,4363.9,4363.8,0.4001]
[1756896012087,0.7078,4363.9,4363.8,0.6876]
[1756896012687,0.7078,4363.9,4363.8,0.4001]
[1756896013390,0.7078,4363.9,4363.8,0.6876]
[1756896014890,0.2994,4364.4,4363.9,0.2875]
[1756896015087,0.7063,4364.4,4364.3,0.192]
[1756896015288,0.7063,4364.4,4364.3,0.3954]
[1756896015493,0.7063,4364.4,4364.3,0.192]
[1756896015993,0.2994,4364.3,4363.9,0.233]
[1756896016197,0.828,4364.0,4363.9,0.9159]
[1756896016392,0.498,4364.0,4363.9,0.9159]
[1756896016588,0.498,4364.0,4363.9,41.4829]
[1756896016989,0.2994,4364.0,4363.9,41.4829]
[1756896022193,0.3183,4364.5,4364.4,0.3954]
[1756896022395,0.6177,4364.5,4364.4,0.3954]
[1756896022794,0.826,4364.5,4364.4,0.192]
[1756896023294,0.826,4364.5,4364.0,0.233]
[1756896023605,0.7063,4364.4,4364.3,0.192]
[1756896024898,0.7063,4364.4,4364.3,0.3954]
[1756896025095,0.7063,4364.4,4364.3,0.6829]
[1756896025791,0.7063,4364.4,4364.3,0.3954]
[1756896027798,0.7063,4364.4,4363.9,41.0875]
[1756896027998,0.4211,4364.0,4363.9,40.8]
[1756896028199,0.4211,4364.0,4363.9,41.033]
[1756896028596,0.4211,4364.0,4363.9,41.3205]
[1756896030001,0.4211,4364.0,4363.9,41.0875]
[1756896030202,0.2994,4364.0,4363.9,41.3205]
[1756896031300,0.3183,4364.5,4364.4,0.3954]
[1756896031602,0.3183,4364.5,4364.4,0.6829]
[1756896031898,0.826,4364.5,4364.4,0.6829]
[1756896033298,0.826,4364.5,4364.4,0.3954]
[1756896035603,0.828,4364.0,4363.7,1.6364209]
[1756896035900,0.7063,4363.1,4363.0,0.3954]
[1756896036606,0.7063,4363.1,4363.0,0.425]
[1756896036805,0.7063,4363.1,4363.0,0.233]
[1756896037602,0.4211,4363.0,4362.8,42.4364209]
[1756896037801,0.4069,4362.9,4362.7,1.6364209]
[1756896038003,0.7063,4362.8,4362.7,1.6364209]
[1756896039100,0.7063,4362.8,4362.7,1.8284209]
[1756896039604,0.7063,4362.8,4362.6,1.8694209]
[1756896039802,0.7063,4362.8,4362.6,0.233]
[1756896040108,0.7063,4362.8,4362.7,0.192]
[1756896043909,0.7063,4362.8,4362.4,1.8694209]
[1756896044212,0.8522,4362.5,4362.4,2.0759209]
[1756896044410,0.8522,4362.5,4362.4,2.2728209]
[1756896045413,0.8522,4362.5,4362.4,0.9324]
[1756896045710,0.5197,4362.5,4362.4,0.9324]
[1756896045909,0.3093,4362.5,4362.4,2.5688209]
[1756896046113,0.3093,4362.5,4362.4,2.3358209]
[1756896046310,0.3093,4362.5,4362.4,2.5688209]
[1756896046714,0.3093,4362.5,4362.4,0.9324]
[1756896047106,0.1217,4363.0,4362.4,0.9324]
[1756896047307,0.5197,4362.9,4362.8,0.6994]
[1756896048216,0.7328,4362.9,4362.8,0.6994]
[1756896048816,0.7328,4362.9,4362.8,0.4034]
[1756896050114,0.7328,4362.9,4362.5,0.233]
[1756896051318,0.4235,4362.9,4362.8,0.2065]
[1756896051517,0.4235,4362.9,4362.8,0.6994]
[1756896051711,0.4235,4362.9,4362.8,0.4034]
[1756896051911,0.7328,4362.9,4362.8,0.4034]
[1756896052111,0.7328,4362.9,4362.6,1.3117321]
[1756896052416,0.1217,4363.0,4362.6,1.3117321]
[1756896052417,0.7328,4362.7,4362.6,1.5182321]
[1756896053210,0.4235,4362.7,4362.3,1.63537161]
[1756896053416,0.4235,4362.7,4362.2,40.8]
[1756896053417,0.8522,4362.5,4362.4,0.4395]
[1756896053919,0.5429,4362.5,4362.2,40.8]
[1756896054119,0.3093,4362.3,4362.2,40.8]
[1756896054420,0.3093,4362.3,4362.2,41.033]
[1756896054721,0.3093,4362.3,4362.2,41.329]
[1756896056327,0.3093,4362.3,4362.2,41.096]
[1756896056626,0.3093,4362.3,4362.2,41.329]
[1756896057121,0.3093,4362.3,4362.2,41.033]
[1756896057419,0.1194,4362.5,4362.4,0.4034]
[1756896057727,0.8522,4362.5,4362.4,0.2065]
[1756896058326,0.8522,4362.5,4362.4,0.6994]
[1756896059123,0.3093,4362.1,4361.9,0.233]
[1756896059323,0.7328,4361.4,4361.3,2.03877161]
[1756896059514,0.7328,4361.4,4360.3,6.79204932]
[1756896059515,1.5022321,4361.4,4361.0,42.43537161]
[1756896059827,0.7328,4360.9,4360.8,0.233]
[1756896060521,0.7328,4360.8,4360.7,0.233]
[1756896060924,0.3093,4360.7,4360.5,1.63537161]
[1756896061131,0.7328,4360.3,4360.2,0.233]
[1756896061333,0.7328,4360.3,4360.2,41.2395]
[1756896061736,0.7328,4360.3,4360.2,41.5355]
[1756896061936,0.7328,4360.3,4360.2,41.3025]
[1756896062535,0.7328,4360.3,4360.2,0.2065]
[1756896062831,0.1194,4360.5,4359.6,0.4395]
[1756896062832,0.4235,4359.7,4359.6,0.4395]
[1756896063032,0.7328,4359.7,4359.6,41.2395]
[1756896063433,0.3093,4360.4,4359.9,0.1969]
[1756896063640,0.7328,4360.4,4360.3,0.2065]
[1756896064044,0.5197,4360.4,4360.3,0.6994]
[1756896065134,0.3093,4360.9,4360.8,0.6994]
[1756896065534,0.3093,4360.9,4360.8,1.58296309]
[1756896065838,0.3093,4360.9,4360.8,1.28696309]
[1756896065839,0.7328,4360.9,4360.8,1.28696309]
[1756896066035,0.3093,4360.9,4360.8,1.58296309]
[1756896066638,0.5197,4360.9,4360.8,1.58296309]
[1756896066843,0.3093,4360.9,4360.8,1.58296309]
[1756896067837,0.1194,4361.5,4360.8,1.58296309]
[1756896068044,0.5197,4361.4,4361.3,0.4034]
[1756896068239,0.5197,4361.4,4361.3,0.6994]
[1756896068942,0.7328,4361.4,4361.3,0.6994]
[1756896069647,0.5197,4361.4,4361.3,0.6994]
[1756896071936,0.318,4361.3,4361.0,40.8]
[1756896072241,0.5116,4360.7,4360.6,0.9327]
[1756896072638,0.5116,4360.7,4360.6,41.44]
[1756896072834,0.318,4360.7,4360.6,41.7327]
[1756896074137,0.318,4360.9,4360.8,0.6997]
[1756896074333,0.7168,4360.9,4360.8,1.29056309]
[1756896074544,0.7168,4360.9,4360.8,1.52356309]
[1756896075144,0.7168,4360.9,4360.8,0.407]
[1756896075844,0.7168,4360.9,4360.8,0.2063]
[1756896077849,0.7168,4360.9,4360.8,0.407]
[1756896079246,0.7168,4360.3,4360.2,40.8]
[1756896079547,0.7168,4359.8,4359.7,0.2063]
[1756896079842,0.1184,4360.0,4359.9,0.2063]
[1756896080040,1.40076309,4360.0,4359.7,40.8]
[1756896080448,0.318,4359.9,4359.7,40.8]
[1756896080649,0.5116,4359.4,4359.3,1.58326309]
[1756896080844,0.5116,4359.4,4359.3,1.81626309]
[1756896081149,0.5116,4359.4,4359.3,42.61626309]
[1756896082345,0.5116,4359.4,4359.3,42.32356309]
[1756896082647,0.5116,4359.4,4359.3,42.61626309]
[1756896083238,0.5116,4359.4,4359.3,42.32356309]
[1756896083739,0.5116,4359.4,4359.3,42.61626309]
[1756896083939,0.1184,4359.5,4359.0,0.4393]
[1756896083940,0.3988,4359.1,4359.0,0.4393]
[1756896084145,0.7168,4359.1,4359.0,0.9327]
[1756896084546,0.5116,4359.1,4359.0,0.9327]
[1756896085857,0.7168,4359.1,4359.0,0.9327]
[1756896086149,0.7168,4359.1,4359.0,0.64]
[1756896086944,0.7168,4359.1,4359.0,0.407]
[1756896087147,0.7168,4359.1,4359.0,0.64]
[1756896087751,0.7168,4359.1,4359.0,0.4393]
[1756896088156,0.7168,4359.1,4359.0,0.64]
[1756896089758,0.318,4359.4,4359.0,0.64]
[1756896089958,0.312,4359.5,4359.4,0.6997]
[1756896090252,0.5172,4359.5,4359.4,0.407]
[1756896090458,0.8352,4359.5,4359.4,0.407]
[1756896091956,0.8352,4359.5,4358.8,1.63537161]
[1756896092158,0.7168,4359.4,4359.3,0.407]
[1756896093857,0.7168,4359.4,4359.3,0.2063]
[1756896094062,0.7168,4359.4,4359.1,0.233]
[1756896094268,0.7168,4359.4,4359.3,0.2063]
[1756896094760,0.7168,4359.3,4359.2,0.2063]
[1756896094949,0.7168,4359.3,4359.2,0.407]
[1756896095353,0.7168,4359.3,4359.2,0.6997]
[1756896095763,0.7168,4359.3,4359.2,0.407]
[1756896096762,0.7168,4359.3,4358.9,1.17626309]
[1756896096958,0.7168,4359.3,4359.0,0.233]
[1756896097560,0.7168,4359.3,4359.2,0.6997]
[1756896098065,0.7168,4359.3,4359.2,0.407]
[1756896101465,0.7168,4359.3,4359.2,0.2063]
[1756896103560,0.5116,4359.3,4359.2,0.6975]
[1756896103767,0.498,4359.9,4359.8,0.3945]
[1756896103961,0.498,4359.9,4359.8,0.6874]
[1756896104466,0.7031,4359.9,4359.8,0.6874]
[1756896105373,0.498,4359.9,4359.8,0.6874]
[1756896106069,0.7031,4359.9,4359.8,0.3945]
[1756896106370,0.7031,4359.9,4359.8,0.6275]
[1756896106870,0.7031,4359.9,4359.8,0.9204]
[1756896107370,0.7031,4359.9,4359.8,0.6275]
[1756896108268,0.7031,4359.9,4359.8,2.26287161]
[1756896108770,0.7031,4359.9,4359.8,2.55577161]
[1756896109272,0.7031,4359.9,4359.8,0.9204]
[1756896111176,0.2981,4359.9,4359.8,0.9204]
[1756896111475,0.1184,4361.0,4360.3,0.4912]
[1756896111476,0.498,4360.4,4360.3,0.4912]
[1756896111773,0.498,4360.4,4360.3,3.21272609]
[1756896112168,0.7031,4360.4,4360.3,2.91982609]
[1756896112373,0.7031,4360.4,4360.3,1.57096309]
[1756896113876,0.7031,4360.4,4360.3,1.27806309]
[1756896114078,0.7031,4360.4,4360.3,1.51106309]
[1756896114280,0.7031,4360.4,4360.3,1.80396309]
[1756896116082,0.7031,4360.4,4360.3,1.51106309]
[1756896116375,0.7031,4360.4,4360.3,1.80396309]
[1756896116981,0.7031,4360.4,4360.3,1.51106309]
[1756896117586,0.7031,4360.4,4360.3,1.80396309]
[1756896118487,0.7031,4360.4,4360.3,1.51106309]
[1756896118779,0.7031,4360.4,4360.3,1.80396309]
[1756896119484,0.1184,4361.0,4360.3,1.80396309]
[1756896119685,0.7031,4360.9,4360.8,1.07976309]
[1756896119886,0.2981,4360.8,4360.6,0.233]
[1756896120086,0.2981,4360.8,4360.7,0.1962]
[1756896120382,0.7031,4360.8,4360.7,0.1962]